bitfinex-derivatives/quotes_BTCF0:USTF0_20250114
["timestamp","ask_amount","ask_price","bid_price","bid_amount"]
[1736813992417,0.052788,94751.0,94750.0,1.913589]
[1736813993615,0.052788,94751.0,94750.0,1.8608]
[1736813994709,0.052788,94751.0,94750.0,1.913589]
[1736813994906,0.5204,94760.0,94750.0,1.8608]
[1736813995105,0.573183,94760.0,94759.0,0.3608]
[1736813995915,0.573183,94760.0,94759.0,0.413584]
[1736813997422,0.3496,94760.0,94759.0,0.413584]
[1736813997624,0.5206,94785.0,94759.0,0.4231697]
[1736813997822,0.052774,94776.0,94775.0,0.3608]
[1736813998522,0.052774,94776.0,94775.0,1.8608]
[1736814000311,0.052774,94776.0,94775.0,0.3608]
[1736814000925,0.573369,94785.0,94784.0,0.05277]
[1736814001224,0.5206,94785.0,94784.0,0.41357]
[1736814001411,0.052764,94794.0,94791.0,0.052765]
[1736814001615,0.52056,94809.0,94791.0,0.052765]
[1736814001811,0.052758,94806.0,94803.0,0.052759]
[1736814002021,0.52056,94809.0,94802.0,0.3608]
[1736814002221,0.052759,94803.0,94802.0,0.3608]
[1736814002424,0.52056,94809.0,94802.0,0.3608]
[1736814002425,0.052757,94808.0,94805.0,0.052758]
[1736814002725,0.52056,94809.0,94796.0,0.052763]
[1736814002925,0.052762,94797.0,94796.0,0.052763]
[1736814003421,0.052765,94793.0,94792.0,1.86232]
[1736814003616,0.052765,94793.0,94792.0,1.8608]
[1736814004431,0.052772,94780.0,94779.0,0.3608]
[1736814004827,0.052776,94772.0,94771.0,0.3608]
[1736814005222,0.052776,94772.0,94749.0,0.3608]
[1736814005223,0.052779,94767.0,94749.0,0.3608]
[1736814005523,0.05279,94748.0,94735.0,0.413597]
[1736814005722,0.3608,94756.0,94735.0,0.413597]
[1736814005723,0.052796,94738.0,94735.0,0.413597]
[1736814005935,0.052796,94736.0,94735.0,0.3608]
[1736814006136,0.052797,94734.0,94727.0,0.3608]
[1736814006343,0.413597,94734.0,94726.0,0.0529]
[1736814006734,0.573315,94739.0,94728.0,0.3608]
[1736814006935,0.573315,94739.0,94734.0,0.052797]
[1736814007136,0.573315,94739.0,94729.0,0.16043688]
[1736814007137,0.52052,94739.0,94729.0,0.16043688]
[1736814007355,0.52052,94739.0,94738.0,0.413595]
[1736814008051,0.52052,94739.0,94738.0,1.913595]
[1736814009544,0.052779,94767.0,94738.0,1.913595]
[1736814009545,0.52056,94813.0,94742.0,0.3701]
[1736814009745,0.3608,94808.0,94800.0,0.16043688]
[1736814010050,0.05276,94802.0,94800.0,0.16043688]
[1736814010257,0.05276,94802.0,94801.0,0.3608]
[1736814010446,0.0536,94812.0,94801.0,0.3608]
[1736814010447,0.052757,94808.0,94801.0,0.3608]
[1736814010946,0.0536,94812.0,94807.0,1.5]
[1736814011146,0.0536,94812.0,94807.0,1.552757]
[1736814011754,0.52112001,94813.0,94811.0,0.052755]
[1736814011947,0.52056,94813.0,94811.0,0.052755]
[1736814012355,0.52056,94813.0,94812.0,1.5]
[1736814012853,0.052749,94822.0,94812.0,1.5]
[1736814013059,0.052749,94822.0,94816.0,0.052752]
[1736814013245,0.05275,94820.0,94816.0,0.052752]
[1736814014653,0.0531,94831.0,94812.0,1.50208]
[1736814014850,0.052746,94826.0,94820.0,0.16043688]
[1736814015453,0.052746,94826.0,94824.0,0.052747]
[1736814015848,0.0531,94831.0,94826.0,0.052746]
[1736814016054,0.52112,94835.0,94830.0,0.3608]
[1736814016256,0.52048,94835.0,94833.0,0.052742]
[1736814018055,0.00048,94835.0,94834.0,1.5]
[1736814018256,0.052733,94851.0,94842.0,0.052737]
[1736814018455,0.0542,94859.0,94844.0,0.3608]
[1736814018957,0.0542,94859.0,94854.0,0.05273]
[1736814019157,0.0542,94859.0,94844.0,0.3608]
[1736814019755,0.106928,94859.0,94849.0,0.16043688]
[1736814020054,0.106928,94859.0,94855.0,0.05273]
[1736814020658,0.106928,94859.0,94856.0,0.052729]
[1736814021060,0.52088001,94861.0,94858.0,0.052728]
[1736814021259,0.52032,94861.0,94858.0,0.052728]
[1736814021651,0.52032,94861.0,94859.0,1.5]
[1736814022052,0.52032,94861.0,94859.0,1.552728]
[1736814023266,0.0527,94873.0,94859.0,1.552728]
[1736814023455,0.5202,94888.0,94859.0,1.552728]
[1736814023456,0.572912,94888.0,94880.0,0.052716]
[1736814023763,0.052716,94881.0,94878.0,0.16043688]
[1736814023962,0.052716,94881.0,94876.0,0.052718]
[1736814024157,0.52076001,94888.0,94881.0,0.052716]
[1736814024357,0.052714,94885.0,94881.0,0.052716]
[1736814024668,0.052715,94883.0,94881.0,0.052716]
[1736814025162,0.052716,94881.0,94880.0,1.50112]
[1736814025367,0.052716,94881.0,94880.0,1.5]
[1736814026059,0.052717,94879.0,94875.0,0.052719]
[1736814026454,0.052717,94879.0,94875.0,1.552719]
[1736814027369,0.052717,94879.0,94875.0,1.501]
[1736814027570,0.3608,94887.0,94875.0,1.501]
[1736814027867,0.052715,94884.0,94879.0,0.052717]
[1736814028172,0.052715,94884.0,94876.0,0.052718]
[1736814028364,0.052715,94884.0,94880.0,0.052716]
[1736814029158,0.052718,94876.0,94875.0,1.50104]
[1736814029365,0.052723,94869.0,94866.0,0.3608]
[1736814029563,0.3608,94882.0,94866.0,0.3608]
[1736814029763,0.3608,94882.0,94870.0,0.16043688]
[1736814029964,0.052716,94881.0,94880.0,0.001]
[1736814030267,0.052721,94871.0,94870.0,0.16043688]
[1736814030466,0.052716,94881.0,94867.0,1.553763]
[1736814030671,0.052723,94868.0,94867.0,1.5]
[1736814032668,0.052723,94868.0,94867.0,1.501]
[1736814033066,0.052723,94868.0,94867.0,1.5]
[1736814033265,0.052723,94868.0,94867.0,1.501]
[1736814034678,0.0539,94872.0,94869.0,0.052722]
[1736814034867,0.106621,94872.0,94870.0,0.052721]
[1736814035573,0.052721,94871.0,94870.0,0.052721]
[1736814035973,0.052722,94870.0,94869.0,0.001]
[1736814036273,0.052723,94869.0,94867.0,1.553763]
[1736814036462,0.052723,94869.0,94867.0,1.552723]
[1736814036972,0.0565,94871.0,94867.0,1.5]
[1736814037174,0.0565,94885.0,94879.0,0.052716]
[1736814037470,0.0565,94885.0,94881.0,0.052716]
[1736814038071,0.0565,94885.0,94884.0,0.052714]
[1736814038271,0.0565,94885.0,94881.0,1.5]
[1736814038272,0.52084,94888.0,94883.0,0.3608]
[1736814038472,0.5202,94888.0,94887.0,0.052712]
[1736814038978,0.5202,94888.0,94887.0,1.552712]
[1736814039876,0.5202,94888.0,94887.0,1.553712]
[1736814041169,0.5202,94888.0,94887.0,1.554712]
[1736814042773,0.00056001,94908.0,94887.0,1.8638]
[1736814042966,0.05269,94927.0,94921.0,0.052693]
[1736814043171,0.3608,94928.0,94920.0,0.3608]
[1736814043373,0.3608,94928.0,94926.0,0.05269]
[1736814043575,0.37048988,94928.0,94926.0,0.05269]
[1736814043767,0.3608,94928.0,94926.0,0.05269]
[1736814044169,0.3608,94928.0,94920.0,0.3608]
[1736814044370,0.3608,94928.0,94907.0,0.3608]
[1736814044371,0.052693,94923.0,94921.0,1.5]
[1736814044571,0.1621,94922.0,94921.0,1.5]
[1736814045575,0.1621,94922.0,94921.0,1.501]
[1736814045874,0.1621,94922.0,94907.0,0.3608]
[1736814045875,0.052701,94908.0,94907.0,0.3608]
[1736814046271,0.3608,94915.0,94898.0,0.052706]
[1736814046576,0.052708,94896.0,94894.0,0.052708]
[1736814046780,0.052711,94890.0,94888.0,0.052712]
[1736814047379,0.052714,94885.0,94881.0,0.052715]
[1736814047773,0.052712,94888.0,94880.0,0.00158086]
[1736814048077,0.052716,94881.0,94880.0,0.00158086]
[1736814048774,0.052716,94881.0,94880.0,1.50158086]
[1736814049377,0.052713,94886.0,94880.0,1.50158086]
[1736814049581,0.052,94889.0,94885.0,0.3608]
[1736814049782,0.05271,94892.0,94885.0,0.3608]
[1736814050075,0.52048001,94895.0,94880.0,0.00282086]
[1736814050076,0.52048001,94895.0,94888.0,0.052711]
[1736814050275,0.51988,94895.0,94889.0,1.5]
[1736814050476,0.052711,94891.0,94889.0,1.5]
[1736814051475,0.0513,94890.0,94889.0,1.5]
[1736814051873,0.3513,94890.0,94885.0,0.001]
[1736814052070,0.052716,94881.0,94880.0,0.00158086]
[1736814052274,0.05272,94874.0,94867.0,0.052723]
[1736814052475,0.3608,94877.0,94862.0,0.2477264]
[1736814052774,0.3608,94877.0,94860.0,0.16043688]
[1736814052775,0.052721,94872.0,94866.0,0.052724]
[1736814053379,0.052721,94872.0,94860.0,0.16043688]
[1736814053582,0.052721,94872.0,94867.0,0.052723]
[1736814055379,0.052722,94871.0,94867.0,0.052723]
[1736814056582,0.3608,94869.0,94850.0,0.16043688]
[1736814056990,0.052725,94865.0,94859.0,0.21316488]
[1736814057181,0.003,94871.0,94859.0,0.16043688]
[1736814057383,0.052723,94868.0,94865.0,0.413524]
[1736814057685,0.001,94871.0,94867.0,0.052724]
[1736814058081,0.001,94871.0,94870.0,1.5]
[1736814058285,0.001,94871.0,94870.0,1.552722]
[1736814058484,0.065,94876.0,94870.0,1.5]
[1736814058679,0.052721,94871.0,94870.0,1.5]
[1736814060085,0.065,94876.0,94873.0,0.05272]
[1736814060276,0.052719,94875.0,94873.0,0.05272]
[1736814060588,0.052719,94875.0,94874.0,0.05272]
[1736814060788,0.065,94876.0,94870.0,1.50128]
[1736814060990,0.065,94876.0,94870.0,1.5]
[1736814060991,0.052721,94871.0,94870.0,1.5]
[1736814063190,0.054721,94871.0,94870.0,1.5]
[1736814064287,0.054721,94871.0,94870.0,1.552722]
[1736814064994,0.054721,94871.0,94870.0,1.5]
[1736814065192,0.002,94871.0,94870.0,1.913522]
[1736814065391,0.1299,94919.0,94889.0,0.052711]
[1736814065694,0.061,94911.0,94894.0,0.774309]
[1736814065887,0.052703,94904.0,94894.0,0.774309]
[1736814066085,0.052703,94904.0,94894.0,2.274309]
[1736814066386,0.0527,94909.0,94894.0,2.274309]
[1736814066690,0.052702,94905.0,94894.0,2.274309]
[1736814066996,0.061,94911.0,94894.0,2.274309]
[1736814067679,0.052704,94902.0,94894.0,2.274309]
[1736814067882,0.52188,94895.0,94894.0,2.274309]
[1736814068283,0.52188,94895.0,94894.0,2.275309]
[1736814069494,0.574588,94895.0,94894.0,2.275309]
[1736814069704,0.574588,94895.0,94894.0,1.914509]
[1736814069898,0.574588,94895.0,94894.0,1.8618]
[1736814070299,0.574588,94895.0,94894.0,0.001]
[1736814070604,0.052716,94880.0,94879.0,0.3608]
[1736814071700,0.052716,94880.0,94873.0,1.5012]
[1736814072008,0.05272,94874.0,94873.0,1.5]
[1736814072603,0.052726,94863.0,94862.0,0.3608]
[1736814073110,0.052726,94863.0,94862.0,1.8608]
[1736814074196,0.053726,94863.0,94862.0,1.8608]
[1736814074502,0.052732,94851.0,94839.0,0.052739]
[1736814074700,0.052739,94840.0,94839.0,0.052739]
[1736814074900,0.052739,94840.0,94839.0,1.552739]
[1736814075500,0.052739,94840.0,94839.0,1.5]
[1736814076303,0.056739,94840.0,94839.0,1.5]
[1736814077013,0.057739,94840.0,94839.0,1.5]
[1736814081421,0.005,94840.0,94839.0,1.5]
[1736814082623,0.005,94840.0,94839.0,1.552739]
[1736814083212,0.001,94840.0,94839.0,1.552739]
[1736814083411,0.052738,94841.0,94840.0,0.052739]
[1736814083606,0.052739,94840.0,94839.0,1.5012]
[1736814083822,0.052739,94840.0,94839.0,1.5]
[1736814085921,0.056739,94840.0,94839.0,1.552739]
[1736814087120,0.004,94840.0,94839.0,1.552739]
[1736814087425,0.005,94840.0,94839.0,1.552739]
[1736814087619,0.057739,94840.0,94839.0,1.5]
[1736814087822,0.052741,94836.0,94835.0,0.3608]
[1736814088216,0.052741,94836.0,94835.0,1.8608]
[1736814088624,0.053741,94836.0,94835.0,0.3608]
[1736814089127,0.055741,94836.0,94835.0,1.8608]
[1736814089323,0.054741,94836.0,94835.0,1.8608]
[1736814090128,0.055741,94836.0,94835.0,1.8608]
[1736814090529,0.055741,94836.0,94835.0,1.913541]
[1736814090722,0.003,94836.0,94835.0,1.913541]
[1736814092125,0.001,94836.0,94835.0,1.914541]
[1736814092527,0.51996,94850.0,94849.0,0.052734]
[1736814092828,0.51996,94850.0,94849.0,0.413534]
[1736814093225,0.51996,94850.0,94849.0,1.913534]
[1736814094324,0.52196,94850.0,94849.0,1.913534]
[1736814095619,0.52696,94850.0,94849.0,1.913534]
[1736814096128,0.52296,94850.0,94849.0,1.913534]
[1736814096732,0.52096,94850.0,94849.0,1.913534]
[1736814097430,0.52096,94850.0,94849.0,1.8608]
[1736814097632,0.572693,94850.0,94849.0,1.8608]
[1736814097834,0.573693,94850.0,94849.0,1.8608]
[1736814098028,0.573693,94850.0,94849.0,0.3608]
[1736814098335,0.573693,94850.0,94849.0,0.3618]
[1736814098336,0.572693,94850.0,94849.0,0.3618]
[1736814098526,0.572693,94850.0,94849.0,0.001]
[1736814098928,0.577693,94850.0,94849.0,0.001]
[1736814099937,0.52596,94850.0,94845.0,0.3608]
[1736814100130,0.052735,94846.0,94845.0,0.3608]
[1736814100527,0.1383,94849.0,94845.0,0.3608]
[1736814100730,0.052735,94846.0,94845.0,0.3608]
[1736814101232,0.052735,94846.0,94845.0,0.3618]
[1736814101635,0.053735,94846.0,94845.0,0.413536]
[1736814101834,0.053735,94846.0,94845.0,0.414536]
[1736814102229,0.001,94846.0,94845.0,0.413536]
[1736814102434,0.007,94846.0,94845.0,0.414536]
[1736814102932,0.007,94846.0,94845.0,1.914536]
[1736814105440,0.052721,94872.0,94871.0,0.05272]
[1736814105644,0.52064001,94876.0,94875.0,0.052719]
[1736814105942,0.52008,94876.0,94875.0,0.052719]
[1736814106636,0.52008,94876.0,94875.0,1.552719]
[1736814107533,0.52108,94876.0,94875.0,1.553719]
[1736814107733,0.52408,94876.0,94875.0,1.554719]
[1736814109538,0.1318,94896.0,94875.0,1.502]
[1736814109744,0.1318,94896.0,94886.0,0.3608]
[1736814109944,0.05271,94892.0,94891.0,0.05271]
[1736814111533,0.05271,94892.0,94891.0,0.05371]
[1736814117050,0.05271,94892.0,94891.0,0.001]
[1736814117545,0.0647,94896.0,94891.0,0.3618]
[1736814117733,0.5206,94905.0,94904.0,0.052703]
[1736814117931,0.5206,94905.0,94904.0,0.413503]
[1736814117932,0.51996,94905.0,94904.0,0.413503]
[1736814118445,0.51996,94905.0,94904.0,1.913503]
[1736814120141,0.51996,94905.0,94904.0,1.914503]
[1736814121138,0.51996,94905.0,94904.0,1.913503]
[1736814121345,0.51996,94905.0,94904.0,1.914503]
[1736814125327,0.572662,94905.0,94904.0,1.8618]
[1736814125667,0.572662,94905.0,94904.0,0.3618]
[1736814127541,0.572662,94905.0,94904.0,1.8618]
[1736814128041,0.572662,94905.0,94904.0,0.3618]
[1736814128246,0.58393935,94905.0,94904.0,0.3618]
[1736814128435,0.58393935,94905.0,94904.0,0.25]
[1736814128636,0.052708,94895.0,94894.0,1.5]
[1736814130042,0.052708,94895.0,94894.0,1.501]
[1736814130842,0.052708,94895.0,94894.0,1.553709]
[1736814131041,0.052705,94900.0,94899.0,0.052704]
[1736814131237,0.00056001,94904.0,94894.0,0.00244]
[1736814131451,0.052703,94905.0,94904.0,0.052702]
[1736814131847,0.052703,94905.0,94904.0,1.552702]
[1736814132443,0.052703,94905.0,94904.0,1.5]
[1736814132646,0.052708,94895.0,94894.0,0.001]
[1736814132853,0.0735,94904.0,94891.0,0.3608]
[1736814133039,0.05271,94892.0,94891.0,0.3608]
[1736814133354,0.052707,94897.0,94896.0,0.052706]
[1736814133653,0.052707,94897.0,94896.0,1.5]
[1736814134047,0.052707,94897.0,94896.0,1.552707]
[1736814135655,0.053707,94897.0,94896.0,1.501]
[1736814136655,0.053707,94897.0,94896.0,0.001]
[1736814138150,0.053707,94897.0,94896.0,1.501]
[1736814138950,0.001,94897.0,94896.0,1.553707]
[1736814142060,0.052701,94907.0,94906.0,0.052702]
[1736814142262,0.052701,94907.0,94906.0,0.413502]
[1736814143359,0.001,94907.0,94906.0,0.414502]
[1736814143956,0.01015791,94918.0,94906.0,0.414502]
[1736814144156,0.10668248,94940.0,94917.0,0.3608]
[1736814144157,0.052691,94927.0,94917.0,0.3608]
[1736814144359,0.052691,94927.0,94926.0,0.413491]
[1736814144561,0.052691,94927.0,94926.0,1.913491]
[1736814144862,0.10668248,94940.0,94926.0,1.8608]
[1736814145048,0.15128952,94932.0,94929.0,0.052689]
[1736814145252,0.052689,94930.0,94929.0,0.052689]
[1736814146060,0.052689,94930.0,94929.0,0.061689]
[1736814146555,0.052689,94930.0,94929.0,0.052689]
[1736814146760,0.052689,94930.0,94929.0,0.061689]
[1736814147155,0.052689,94930.0,94929.0,0.009]
[1736814147561,0.052689,94930.0,94929.0,0.018]
[1736814148563,0.09860252,94932.0,94930.0,0.052689]
[1736814149559,0.09860252,94932.0,94929.0,0.018]
[1736814149765,0.052688,94930.0,94929.0,0.009]
[1736814150857,0.052688,94931.0,94930.0,0.009]
[1736814151563,0.05269,94927.0,94926.0,0.3608]
[1736814152657,0.052693,94921.0,94920.0,1.5014]
[1736814152855,0.052693,94921.0,94920.0,1.5]
[1736814155069,0.052693,94921.0,94920.0,1.501]
[1736814161268,0.201493,94921.0,94920.0,1.501]
[1736814161874,0.201493,94921.0,94920.0,0.001]
[1736814162170,0.052702,94905.0,94904.0,0.3608]
[1736814162369,0.3608,94907.0,94904.0,1.5]
[1736814162570,0.052702,94905.0,94904.0,1.5]
[1736814163073,0.573422,94905.0,94904.0,1.306452]
[1736814163273,0.052715,94883.0,94882.0,0.3608]
[1736814163573,0.052703,94904.0,94871.0,0.3608]
[1736814163574,0.052721,94872.0,94871.0,0.3608]
[1736814164071,0.052726,94863.0,94862.0,0.3608]
[1736814164678,0.052726,94863.0,94862.0,1.8608]
[1736814165573,0.052726,94863.0,94862.0,1.8628]
[1736814166474,0.052726,94863.0,94862.0,1.8638]
[1736814169769,0.052726,94863.0,94862.0,1.8628]
[1736814170471,0.053726,94863.0,94862.0,1.8608]
[1736814170780,0.055726,94863.0,94862.0,1.8608]
[1736814172974,0.055726,94863.0,94862.0,1.5]
[1736814173275,0.056726,94863.0,94862.0,0.96935999]
[1736814173472,0.052732,94851.0,94850.0,0.3608]
[1736814174377,0.052732,94851.0,94850.0,1.8608]
[1736814174881,0.052732,94851.0,94850.0,1.8638]
[1736814176170,0.052732,94851.0,94850.0,1.8648]
[1736814177475,0.052732,94851.0,94850.0,0.3648]
[1736814178171,0.052732,94851.0,94850.0,0.3618]
[1736814178383,0.058732,94851.0,94850.0,0.3628]
[1736814178569,0.0689205,94851.0,94850.0,0.3618]
[1736814178770,0.00038046,113270.0,94850.0,0.3618]
[1736814178771,0.052718,94878.0,94850.0,0.3618]
[1736814178977,0.052718,94878.0,94861.0,0.3608]
[1736814178978,0.01016279,94871.0,94861.0,0.3608]
[1736814179180,0.10668248,94870.0,94861.0,1.8608]
[1736814180185,0.054726,94862.0,94861.0,1.8608]
[1736814180575,0.057726,94862.0,94861.0,1.8608]
[1736814180977,0.057726,94862.0,94861.0,0.3608]
[1736814181283,0.057726,94862.0,94861.0,0.3618]
[1736814181669,0.052726,94862.0,94861.0,0.3608]
[1736814181975,0.055726,94862.0,94861.0,0.3608]
[1736814182479,0.055726,94862.0,94861.0,0.413527]
[1736814182775,0.003,94862.0,94861.0,0.413527]
[1736814182977,0.052717,94880.0,94879.0,0.052717]
[1736814183172,0.052717,94880.0,94879.0,0.413517]
[1736814184776,0.002,94880.0,94879.0,0.413517]
[1736814185176,0.002,94880.0,94879.0,0.3608]
[1736814185177,0.052716,94880.0,94879.0,0.3608]
[1736814185579,0.052716,94880.0,94879.0,0.413517]
[1736814185892,0.052716,94880.0,94879.0,0.3608]
[1736814186582,0.052721,94872.0,94871.0,0.052721]
[1736814188087,0.052721,94872.0,94871.0,1.552721]
[1736814188980,0.052718,94878.0,94877.0,0.052717]
[1736814189184,0.052715,94883.0,94882.0,0.052715]
[1736814189379,0.052715,94883.0,94882.0,0.413515]
[1736814192390,0.1467,94897.0,94882.0,0.3608]
[1736814192688,0.05271,94891.0,94890.0,0.41351]
[1736814193486,0.53098547,94898.0,94897.0,0.052707]
[1736814193487,0.00060001,94898.0,94897.0,0.052707]
[1736814193680,0.052704,94902.0,94901.0,0.052704]
[1736814193886,0.052704,94902.0,94901.0,0.413504]
[1736814194183,0.052704,94902.0,94901.0,1.913504]
[1736814194787,0.052704,94902.0,94901.0,1.914504]
[1736814195194,0.052704,94902.0,94901.0,1.8618]
[1736814196191,0.51996,94914.0,94913.0,0.052698]
[1736814196396,0.51996,94914.0,94913.0,0.413498]
[1736814197496,0.51996,94914.0,94913.0,1.914498]
[1736814198086,0.572657,94914.0,94913.0,1.8618]
[1736814198498,0.572657,94914.0,94913.0,1.8628]
[1736814198791,0.572657,94914.0,94913.0,1.915498]
[1736814200182,0.51996,94914.0,94913.0,1.915498]
[1736814204388,0.5198,94938.0,94913.0,1.915498]
[1736814204588,0.15128952,94932.0,94931.0,0.413488]
[1736814207201,0.15128952,94932.0,94931.0,0.414488]
[1736814207584,0.15128952,94932.0,94931.0,0.415488]
[1736814207989,0.15128952,94932.0,94931.0,1.915488]
[1736814209497,0.09860252,94932.0,94931.0,2.276288]
[1736814209700,0.62644331,94990.0,94974.0,0.052664]
[1736814209899,0.153,94983.0,94975.0,0.052663]
[1736814210093,0.153,94983.0,94970.0,0.46748248]
[1736814210094,0.206659,94983.0,94970.0,0.3608]
[1736814210305,0.10668248,94980.0,94970.0,0.3608]
[1736814210491,0.052663,94977.0,94976.0,0.052662]
[1736814210696,0.001,94982.0,94970.0,0.3608]
[1736814210997,0.05366,94982.0,94981.0,0.05266]
[1736814211196,0.052661,94979.0,94978.0,0.3608]
[1736814211396,0.001,94982.0,94963.0,1.5014]
[1736814211601,0.3608,94985.0,94963.0,1.5]
[1736814211602,0.05267,94964.0,94963.0,1.5]
[1736814212104,0.052672,94960.0,94959.0,0.3608]
[1736814212294,0.05367,94964.0,94951.0,0.3608]
[1736814212499,0.052676,94952.0,94951.0,0.3608]
[1736814212699,0.0749,94959.0,94951.0,0.3608]
[1736814213205,0.052676,94952.0,94951.0,0.3608]
[1736814214007,0.052676,94952.0,94951.0,0.3618]
[1736814215003,0.052676,94952.0,94951.0,0.3608]
[1736814215209,0.052676,94952.0,94951.0,0.3618]
[1736814215411,0.052676,94952.0,94951.0,0.414477]
[1736814215708,0.052676,94952.0,94951.0,0.3618]
[1736814216601,0.052676,94952.0,94951.0,0.3608]
[1736814216807,0.052676,94952.0,94951.0,0.3618]
[1736814217214,0.052668,94967.0,94951.0,0.3618]
[1736814217510,0.052668,94966.0,94965.0,0.3608]
[1736814218003,0.131163,94976.0,94951.0,0.3618]
[1736814218004,0.052676,94952.0,94951.0,0.3618]
[1736814218510,0.052676,94952.0,94951.0,1.8618]
[1736814219909,0.052676,94952.0,94951.0,1.8608]
[1736814220213,0.052676,94952.0,94951.0,1.8618]
[1736814220515,0.052676,94952.0,94951.0,1.8608]
[1736814220705,0.052676,94952.0,94951.0,1.8618]
[1736814227909,0.052676,94952.0,94945.0,0.3608]
[1736814227910,0.001,94952.0,94934.0,0.3608]
[1736814228106,0.052686,94935.0,94934.0,0.3608]
[1736814228312,0.052686,94935.0,94934.0,1.913486]
[1736814232219,0.052686,94935.0,94934.0,1.8608]
[1736814232519,0.053686,94935.0,94934.0,1.85936692]
[1736814232718,0.053686,94935.0,94934.0,1.5]
[1736814237329,0.05269,94927.0,94926.0,0.3608]
[1736814237830,0.05369,94927.0,94926.0,1.8608]
[1736814238836,0.05369,94927.0,94907.0,0.3608]
[1736814238837,0.052694,94920.0,94907.0,0.3608]
[1736814239133,0.052701,94908.0,94907.0,0.3608]
[1736814239336,0.052701,94908.0,94907.0,1.8608]
[1736814240438,0.052701,94908.0,94907.0,1.5]
[1736814240829,0.052706,94899.0,94898.0,0.3608]
[1736814241230,0.052706,94899.0,94898.0,1.8608]
[1736814244129,0.152,94919.0,94898.0,1.8608]
[1736814244336,0.052699,94911.0,94910.0,0.3608]
[1736814244730,0.052706,94899.0,94898.0,1.86216]
[1736814244936,0.052706,94899.0,94898.0,1.8608]
[1736814245439,0.052706,94899.0,94898.0,1.501]
[1736814246132,0.052706,94899.0,94898.0,1.5]
[1736814246334,0.053706,94899.0,94898.0,1.5]
[1736814246532,0.053706,94899.0,94889.0,0.3608]
[1736814246735,0.052711,94890.0,94889.0,0.3608]
[1736814247437,0.052717,94879.0,94878.0,1.50136]
[1736814247637,0.052717,94879.0,94878.0,1.5]
[1736814248643,0.3608,94883.0,94867.0,0.3608]
[1736814248942,0.052723,94868.0,94867.0,0.3608]
[1736814249239,0.052723,94868.0,94867.0,1.8608]
[1736814249635,0.052708,94895.0,94867.0,1.8608]
[1736814249834,0.052708,94895.0,94867.0,1.8618]
[1736814250034,0.052721,94872.0,94871.0,0.052721]
[1736814250244,0.052708,94895.0,94867.0,1.8618]
[1736814250245,0.052723,94868.0,94867.0,1.86316]
[1736814250444,0.052723,94868.0,94867.0,1.8618]
[1736814251242,0.51976,94886.0,94885.0,0.052713]
[1736814251439,0.052708,94895.0,94893.0,0.052709]
[1736814251741,0.052708,94895.0,94894.0,0.0805]
[1736814251942,0.052708,94895.0,94894.0,1.5805]
[1736814252339,0.052708,94895.0,94894.0,1.633208]
[1736814252940,0.052708,94895.0,94894.0,1.9413]
[1736814253548,0.052708,94895.0,94894.0,1.8608]
[1736814253841,0.052708,94895.0,94885.0,0.001]
[1736814253842,0.414508,94895.0,94885.0,0.001]
[1736814254042,0.052713,94886.0,94876.0,0.3608]
[1736814254240,0.052718,94877.0,94876.0,0.3608]
[1736814254441,0.052715,94883.0,94876.0,1.8608]
[1736814254640,0.052715,94883.0,94882.0,0.052715]
[1736814255245,0.052715,94883.0,94882.0,1.552715]
[1736814256047,0.052712,94888.0,94887.0,0.052712]
[1736814256448,0.052704,94902.0,94886.0,0.3608]
[1736814256641,0.052707,94897.0,94896.0,0.3608]
[1736814256841,0.052712,94887.0,94886.0,0.3608]
[1736814257144,0.052714,94883.0,94882.0,0.00136]
[1736814257344,0.052722,94870.0,94860.0,0.3608]
[1736814257649,0.052722,94869.0,94868.0,0.3608]
[1736814258045,0.052722,94869.0,94868.0,1.8608]
[1736814258535,0.053722,94869.0,94861.0,0.3608]
[1736814258736,0.052726,94862.0,94861.0,0.3608]
[1736814259143,0.052726,94862.0,94861.0,1.8608]
[1736814259649,0.052726,94862.0,94861.0,1.8618]
[1736814259843,0.052726,94862.0,94861.0,1.8648]
[1736814260545,0.052726,94862.0,94861.0,1.504]
[1736814262250,0.052726,94862.0,94861.0,1.503]
[1736814262947,0.052726,94862.0,94861.0,1.5]
[1736814263343,0.052722,94870.0,94869.0,0.052722]
[1736814263545,0.052722,94870.0,94869.0,0.413522]
[1736814263946,0.052722,94870.0,94869.0,1.913522]
[1736814266349,0.052722,94870.0,94869.0,1.8608]
[1736814268158,0.052722,94870.0,94858.0,0.3608]
[1736814268159,0.053722,94870.0,94858.0,0.3608]
[1736814268356,0.16019845,94868.0,94848.0,0.3608]
[1736814268559,0.052733,94850.0,94848.0,0.3608]
[1736814269148,0.052733,94850.0,94849.0,1.50158138]
[1736814270254,0.052733,94850.0,94849.0,1.50758138]
[1736814271158,0.052733,94850.0,94849.0,1.50958138]
[1736814271751,0.052733,94850.0,94849.0,1.50658138]
[1736814272158,0.052733,94850.0,94849.0,1.50558138]
[1736814274055,0.414533,94850.0,94849.0,1.504]
[1736814274359,0.414533,94850.0,94849.0,0.004]
[1736814276758,0.413533,94850.0,94849.0,0.004]
[1736814277653,0.413533,94850.0,94839.0,0.3608]
[1736814277654,0.052738,94840.0,94839.0,0.3608]